{"text_format":"3","workbook":"xlsx","n_sheets":1,"sheets":["招聘计划"],"not_rendered":{"defined_names":1},"read":"whole","date_system":"1900"}

{"sheet":"招聘计划","index":0,"n_rows":65,"n_cols":16,"rows_kept":65,"merged":[[0,0,0,15],[1,0,2,0],[1,1,2,1],[1,2,2,2],[1,3,2,3],[1,4,2,4],[1,5,2,5],[1,6,2,6],[1,7,2,7],[1,8,1,12],[1,13,2,13],[1,14,2,14],[1,15,2,15]]}
["2024年宁明县公开招聘教师岗位计划表"]
["岗位序号","主管部门","岗位编号","用人单位","招聘岗位名称","用人方式","服务年限要求","计划招聘人数","招聘岗位资格条件",{"$nulls":4},"是否免笔试","面试方式","咨询电话"]
[{"$nulls":8},"所学专业","学历","学位","年龄","职业资格"]
[{"$f":"SUBTOTAL(3,$I$3:I3)*1","v":1},"宁明县教育局",2024003,"宁明县宁明中学","高中数学教师","事业编制","在宁明县教育系统服务3年",3,"数学与应用数学，数理基础科学，应用数学，计算数学及其应用软件，数学，基础数学，计算数学，概率论与数理统计,统计学，应用统计学及其他与数学相关的专业","大学本科及以上","学士学位及以上","18-35周岁","高中数学教师资格、普通话二级乙等及以上","是","试讲","宁明县教育局人事股0771-8632311"]
[{"$f":"SUBTOTAL(3,$I$3:I4)*1","v":2},"宁明县教育局",2024004,"宁明县宁明中学","高中数学教师","聘用教师控制数","在宁明县教育系统服务3年",7,"数学与应用数学，数理基础科学，应用数学，计算数学及其应用软件，数学，基础数学，计算数学，概率论与数理统计,统计学，应用统计学及其他与数学相关的专业","大学本科及以上","学士学位及以上","18-35周岁","高中数学教师资格、普通话二级乙等及以上","是","试讲","宁明县教育局人事股0771-8632311"]
[{"$f":"SUBTOTAL(3,$I$3:I5)*1","v":3},"宁明县教育局",2024005,"宁明县宁明中学","高中英语教师","事业编制","在宁明县教育系统服务3年",1,"英语,应用英语,实用英语,英语教育,商务英语,外贸英语,旅游英语及其他与英语相关的专业","大学本科及以上","学士学位及以上","18-35周岁","高中英语教师资格、普通话二级乙等及以上","是","试讲","宁明县教育局人事股0771-8632311"]
[{"$f":"SUBTOTAL(3,$I$3:I6)*1","v":4},"宁明县教育局",2024006,"宁明县宁明中学","高中英语教师","聘用教师控制数","在宁明县教育系统服务3年",1,"英语,应用英语,实用英语,英语教育,商务英语,外贸英语,旅游英语及其他与英语相关的专业","大学本科及以上","学士学位及以上","18-35周岁","高中英语教师资格、普通话二级乙等及以上","是","试讲","宁明县教育局人事股0771-8632311"]
[{"$f":"SUBTOTAL(3,$I$3:I7)*1","v":5},"宁明县教育局",2024009,"宁明县宁明中学","高中物理教师","事业编制","在宁明县教育系统服务3年",5,"物理学,应用物理学,物理教育,物理学教育、综合理科教育,理论物理，粒子物理与原子核物理，原子与分子物理，等离子体物理，凝聚态物理，无线电物理及其他与物理相关的专业","大学本科及以上","学士学位及以上","18-35周岁","高中物理教师资格、普通话二级乙等及以上","是","试讲","宁明县教育局人事股0771-8632311"]
[{"$f":"SUBTOTAL(3,$I$3:I8)*1","v":6},"宁明县教育局",2024010,"宁明县宁明中学","高中物理教师","聘用教师控制数","在宁明县教育系统服务3年",2,"物理学,应用物理学,物理教育,物理学教育、综合理科教育,理论物理，粒子物理与原子核物理，原子与分子物理，等离子体物理，凝聚态物理，无线电物理及其他与物理相关的专业","大学本科及以上","学士学位及以上","18-35周岁","高中物理教师资格、普通话二级乙等及以上","是","试讲","宁明县教育局人事股0771-8632311"]
[{"$f":"SUBTOTAL(3,$I$3:I9)*1","v":7},"宁明县教育局",2024014,"宁明县宁明中学","高中历史教师","聘用教师控制数","在宁明县教育系统服务3年",1,"历史学,历史教育,历史地理学,世界历史,世界史,政史教育,综合文科教育 ,史学理论及史学史，考古学及博物馆学，历史文献学，专门史，中国古代史，中国近现代史，文化人类学及其他与历史相关的专业","大学本科及以上","学士学位及以上","18-35周岁","高中历史教师资格及以上、普通话二级乙等及以上","是","试讲","宁明县教育局人事股0771-8632311"]
[{"$f":"SUBTOTAL(3,$I$3:I10)*1","v":8},"宁明县教育局",2024022,"宁明县宁明中学","高中体育教师","聘用教师控制数","在宁明县教育系统服务3年",1,"体育教育,运动训练,社会体育,武术,竞技体育，运动人体科学，民族传统体育，体育管理，社会体育指导与管理，武术与民族传统教育","大学本科及以上","学士学位及以上","18-35周岁","高中体育教师资格、普通话二级乙等及以上","是","试讲","宁明县教育局人事股0771-8632311"]
[{"$f":"SUBTOTAL(3,$I$3:I11)*1","v":9},"宁明县教育局",2024023,"宁明县宁明中学","高中美术教师","事业编制","在宁明县教育系统服务3年",1,"美术教育,美术,美术学,绘画,中国画,油画,电脑美术设计,工艺美术及其他与美术相关的专业","大学本科及以上","学士学位及以上","18-35周岁","高中美术教师资格、普通话二级乙等及以上","是","试讲","宁明县教育局人事股0771-8632311"]
[{"$f":"SUBTOTAL(3,$I$3:I12)*1","v":10},"宁明县教育局",2024028,"宁明县宁明中学","高中心理教师","聘用教师控制数","在宁明县教育系统服务3年",1,"心理学，应用心理学，临床心理学，医学心理学，社会心理学，心理咨询,教育学及其他与心理相关的专业","大学本科及以上","学士学位及以上","18-35周岁","高中心理教师资格、普通话二级乙等及以上","是","试讲","宁明县教育局人事股0771-8632311"]
[{"$f":"SUBTOTAL(3,$I$3:I13)*1","v":11},"宁明县教育局",2024029,"宁明县宁明中学","高中通用技术教师","聘用教师控制数","在宁明县教育系统服务3年",1,"通用技术相关专业","大学本科及以上","学士学位及以上","18-35周岁","高中通用技术教师资格、普通话二级乙等及以上","是","试讲","宁明县教育局人事股0771-8632311"]
[{"$f":"SUBTOTAL(3,$I$3:I14)*1","v":12},"宁明县教育局",2024032,"宁明县第二高级中学","高中数学教师","事业编制","在宁明县教育系统服务3年",6,"数学与应用数学，数理基础科学，应用数学，计算数学及其应用软件，数学，基础数学，计算数学，概率论与数理统计,统计学，应用统计学及其他与数学相关的专业","大学本科及以上","学士学位及以上","18-35周岁","高中数学教师资格、普通话二级乙等及以上","是","试讲","宁明县教育局人事股0771-8632311"]
[{"$f":"SUBTOTAL(3,$I$3:I15)*1","v":13},"宁明县教育局",2024033,"宁明县第二高级中学","高中数学教师","聘用教师控制数","在宁明县教育系统服务3年",6,"数学与应用数学，数理基础科学，应用数学，计算数学及其应用软件，数学，基础数学，计算数学，概率论与数理统计,统计学，应用统计学及其他与数学相关的专业","大学本科及以上","学士学位及以上","18-35周岁","高中数学教师资格、普通话二级乙等及以上","是","试讲","宁明县教育局人事股0771-8632311"]
[{"$f":"SUBTOTAL(3,$I$3:I16)*1","v":14},"宁明县教育局",2024034,"宁明县第二高级中学","高中英语教师","事业编制","在宁明县教育系统服务3年",5,"英语,应用英语,实用英语,英语教育,商务英语,外贸英语,旅游英语及其他与英语相关的专业","大学本科及以上","学士学位及以上","18-35周岁","高中英语教师资格及以上、普通话二级乙等及以上","是","试讲","宁明县教育局人事股0771-8632311"]
[{"$f":"SUBTOTAL(3,$I$3:I17)*1","v":15},"宁明县教育局",2024035,"宁明县第二高级中学","高中英语教师","聘用教师控制数","在宁明县教育系统服务3年",5,"英语,应用英语,实用英语,英语教育,商务英语,外贸英语,旅游英语及其他与英语相关的专业","大学本科及以上","学士学位及以上","18-35周岁","高中英语教师资格及以上、普通话二级乙等及以上","是","试讲","宁明县教育局人事股0771-8632311"]
[{"$f":"SUBTOTAL(3,$I$3:I18)*1","v":16},"宁明县教育局",2024039,"宁明县第二高级中学","高中物理教师","聘用教师控制数","在宁明县教育系统服务3年",3,"物理学,应用物理学,物理教育,物理学教育、综合理科教育,理论物理，粒子物理与原子核物理，原子与分子物理，等离子体物理，凝聚态物理，无线电物理及其他与物理相关的专业","大学本科及以上","学士学位及以上","18-35周岁","高中物理教师资格及以上、普通话二级乙等及以上","是","试讲","宁明县教育局人事股0771-8632311"]
[{"$f":"SUBTOTAL(3,$I$3:I19)*1","v":17},"宁明县教育局",2024042,"宁明县第二高级中学","高中历史教师","事业编制","在宁明县教育系统服务3年",2,"历史学,历史教育,历史地理学,世界历史,世界史,政史教育,综合文科教育 ,史学理论及史学史，考古学及博物馆学，历史文献学，专门史，中国古代史，中国近现代史，文化人类学及其他与历史相关的专业","大学本科及以上","学士学位及以上","18-35周岁","高中历史教师资格及以上、普通话二级乙等及以上","是","试讲","宁明县教育局人事股0771-8632311"]
[{"$f":"SUBTOTAL(3,$I$3:I20)*1","v":18},"宁明县教育局",2024043,"宁明县第二高级中学","高中历史教师","聘用教师控制数","在宁明县教育系统服务3年",2,"历史学,历史教育,历史地理学,世界历史,世界史,政史教育,综合文科教育 ,史学理论及史学史，考古学及博物馆学，历史文献学，专门史，中国古代史，中国近现代史，文化人类学及其他与历史相关的专业","大学本科及以上","学士学位及以上","18-35周岁","高中历史教师资格及以上、普通话二级乙等及以上","是","试讲","宁明县教育局人事股0771-8632311"]
[{"$f":"SUBTOTAL(3,$I$3:I21)*1","v":19},"宁明县教育局",2024045,"宁明县第二高级中学","高中生物教师","聘用教师控制数","在宁明县教育系统服务3年",2,"生物科学，生物技术，生物信息学，生物信息技术，生物科学与生物技术，生物化学与分子生物学，植物生物技术，动物生物技术，生物资源科学，生物安全，生物工程,生化技术,生物教育  ，生理学，水生生物学，微生物学，神经生物学，遗传学，发育生物学，细胞生物学，生物化学与分子生物学，生物物理学，生态学","大学本科及以上","学士学位及以上","18-35周岁","高中生物教师资格及以上、普通话二级乙等及以上","是","试讲","宁明县教育局人事股0771-8632311"]
[{"$f":"SUBTOTAL(3,$I$3:I22)*1","v":20},"宁明县教育局",2024046,"宁明县第二高级中学","高中地理教师","事业编制","在宁明县教育系统服务3年",2,"地理科学,地理学,地理教育,地理学教育,地理信息科学,地理信息技术,自然地理与资源环境,人文地理与城乡规划,环境科学及其他与地理相关的专业","大学本科及以上","学士学位及以上","18-35周岁","高中地理教师资格、普通话二级乙等及以上","是","试讲","宁明县教育局人事股0771-8632311"]
[{"$f":"SUBTOTAL(3,$I$3:I23)*1","v":21},"宁明县教育局",2024047,"宁明县第二高级中学","高中地理教师","聘用教师控制数","在宁明县教育系统服务3年",1,"地理科学,地理学,地理教育,地理学教育,地理信息科学,地理信息技术,自然地理与资源环境,人文地理与城乡规划,环境科学及其他与地理相关的专业","大学本科及以上","学士学位及以上","18-35周岁","高中地理教师资格、普通话二级乙等及以上","是","试讲","宁明县教育局人事股0771-8632311"]
[{"$f":"SUBTOTAL(3,$I$3:I24)*1","v":22},"宁明县教育局",2024051,"宁明县第二高级中学","高中体育教师","聘用教师控制数","在宁明县教育系统服务3年",1,"体育教育,运动训练,社会体育,武术,竞技体育，运动人体科学，民族传统体育，体育管理，社会体育指导与管理，武术与民族传统教育","大学本科及以上","学士学位及以上","18-35周岁","高中体育教师资格、普通话二级乙等及以上","是","试讲","宁明县教育局人事股0771-8632311"]
[{"$f":"SUBTOTAL(3,$I$3:I25)*1","v":23},"宁明县教育局",2024060,"宁明县城镇第一中学","初中数学教师","聘用教师控制数","在宁明县教育系统服务3年",1,"数学与应用数学，数理基础科学，应用数学，计算数学及其应用软件，数学，基础数学，计算数学，概率论与数理统计,统计学，应用统计学及其他与数学相关的专业","大学本科及以上","学士学位及以上","18-35周岁","初中及以上数学教师资格、普通话二级乙等及以上","是","试讲","宁明县教育局人事股0771-8632311"]
[{"$f":"SUBTOTAL(3,$I$3:I26)*1","v":24},"宁明县教育局",2024063,"宁明县城镇第一中学","初中物理教师","聘用教师控制数","在宁明县教育系统服务3年",2,"物理学,应用物理学,物理教育,物理学教育、综合理科教育,理论物理，粒子物理与原子核物理，原子与分子物理，等离子体物理，凝聚态物理，无线电物理及其他与物理相关的专业","大学本科及以上","学士学位及以上","18-35周岁","初中及以上物理教师资格、普通话二级乙等及以上","是","试讲","宁明县教育局人事股0771-8632311"]
[{"$f":"SUBTOTAL(3,$I$3:I27)*1","v":25},"宁明县教育局",2024066,"宁明县城镇第一中学","初中历史教师","聘用教师控制数","在宁明县教育系统服务3年",1,"历史学,历史教育,历史地理学,世界历史,世界史,政史教育,综合文科教育 ,史学理论及史学史，考古学及博物馆学，历史文献学，专门史，中国古代史，中国近现代史，文化人类学及其他与历史相关的专业","大学本科及以上","学士学位及以上","18-35周岁","初中及以上历史教师资格、普通话二级乙等及以上","是","试讲","宁明县教育局人事股0771-8632311"]
[{"$f":"SUBTOTAL(3,$I$3:I28)*1","v":26},"宁明县教育局",2024067,"宁明县城镇第一中学","初中生物教师","聘用教师控制数","在宁明县教育系统服务3年",1,"生物科学，生物技术，生物信息学，生物信息技术，生物科学与生物技术，生物化学与分子生物学，植物生物技术，动物生物技术，生物资源科学，生物安全，生物工程,生化技术,生物教育  ，生理学，水生生物学，微生物学，神经生物学，遗传学，发育生物学，细胞生物学，生物化学与分子生物学，生物物理学，生态学","大学本科及以上","学士学位及以上","18-35周岁","初中及以上生物教师资格、普通话二级乙等及以上","是","试讲","宁明县教育局人事股0771-8632311"]
[{"$f":"SUBTOTAL(3,$I$3:I29)*1","v":27},"宁明县教育局",2024068,"宁明县城镇第一中学","初中地理教师","聘用教师控制数","在宁明县教育系统服务3年",1,"地理科学,地理学,地理教育,地理学教育,地理信息科学,地理信息技术,自然地理与资源环境,人文地理与城乡规划,环境科学及其他与地理相关的专业","大学本科及以上","学士学位及以上","18-35周岁","初中及以上地理教师资格、普通话二级乙等及以上","是","试讲","宁明县教育局人事股0771-8632311"]
[{"$f":"SUBTOTAL(3,$I$3:I30)*1","v":28},"宁明县教育局",2024073,"宁明县城镇第一中学","初中心理教师","聘用教师控制数","在宁明县教育系统服务3年",1,"心理学，应用心理学，临床心理学，医学心理学，社会心理学，心理咨询,教育学及其他与心理相关的专业","大学本科及以上","学士学位及以上","18-35周岁","初中及以上心理教师资格、普通话二级乙等及以上","是","试讲","宁明县教育局人事股0771-8632311"]
[{"$f":"SUBTOTAL(3,$I$3:I31)*1","v":29},"宁明县教育局",2024077,"宁明县民族中学","初中数学教师","聘用教师控制数","在宁明县教育系统服务3年",1,"数学与应用数学，数理基础科学，应用数学，计算数学及其应用软件，数学，基础数学，计算数学，概率论与数理统计,统计学，应用统计学及其他与数学相关的专业","大学本科及以上","学士学位及以上","18-35周岁","初中及以上数学教师资格、普通话二级乙等及以上","是","试讲","宁明县教育局人事股0771-8632311"]
[{"$f":"SUBTOTAL(3,$I$3:I32)*1","v":30},"宁明县教育局",2024079,"宁明县民族中学","初中英语教师","聘用教师控制数","在宁明县教育系统服务3年",1,"英语,应用英语,实用英语,英语教育,商务英语,外贸英语,旅游英语及其他与英语相关的专业","大学本科及以上","学士学位及以上","18-35周岁","初中及以上英语教师资格、普通话二级乙等及以上","是","试讲","宁明县教育局人事股0771-8632311"]
[{"$f":"SUBTOTAL(3,$I$3:I33)*1","v":31},"宁明县教育局",2024090,"宁明县民族中学","初中心理教师","事业编制","在宁明县教育系统服务3年",1,"心理学，应用心理学，临床心理学，医学心理学，社会心理学，心理咨询,教育学及其他与心理相关的专业","大学本科及以上","学士学位及以上","18-35周岁","初中及以上心理教师资格、普通话二级乙等及以上","是","试讲","宁明县教育局人事股0771-8632311"]
[{"$f":"SUBTOTAL(3,$I$3:I34)*1","v":32},"宁明县教育局",2024091,"宁明县实验学校（初中部）","初中历史教师","聘用教师控制数","在宁明县教育系统服务3年",1,"历史学,历史教育,历史地理学,世界历史,世界史,政史教育,综合文科教育 ,史学理论及史学史，考古学及博物馆学，历史文献学，专门史，中国古代史，中国近现代史，文化人类学及其他与历史相关的专业","大学本科及以上","学士学位及以上","18-35周岁","初中及以上历史教师资格、普通话二级乙等及以上","是","试讲","宁明县教育局人事股0771-8632311"]
[{"$f":"SUBTOTAL(3,$I$3:I35)*1","v":33},"宁明县教育局",2024095,"宁明县实验学校（初中部）","初中数学教师","聘用教师控制数","在宁明县教育系统服务3年",2,"数学与应用数学，数理基础科学，应用数学，计算数学及其应用软件，数学，基础数学，计算数学，概率论与数理统计,统计学，应用统计学及其他与数学相关的专业","大学本科及以上","学士学位及以上","18-35周岁","初中及以上数学教师资格、普通话二级乙等及以上","是","试讲","宁明县教育局人事股0771-8632311"]
[{"$f":"SUBTOTAL(3,$I$3:I36)*1","v":34},"宁明县教育局",2024103,"宁明县第二实验学校（初中部）","初中数学教师","聘用教师控制数","在宁明县教育系统服务3年",1,"数学与应用数学，数理基础科学，应用数学，计算数学及其应用软件，数学，基础数学，计算数学，概率论与数理统计,统计学，应用统计学及其他与数学相关的专业","大学本科及以上","学士学位及以上","18-35周岁","初中及以上数学教师资格、普通话二级乙等及以上","是","试讲","宁明县教育局人事股0771-8632311"]
[{"$f":"SUBTOTAL(3,$I$3:I37)*1","v":35},"宁明县教育局",2024105,"宁明县第二实验学校（初中部）","初中物理教师","聘用教师控制数","在宁明县教育系统服务3年",2,"物理学,应用物理学,物理教育,物理学教育、综合理科教育,理论物理，粒子物理与原子核物理，原子与分子物理，等离子体物理，凝聚态物理，无线电物理及其他与物理相关的专业","大学本科及以上","学士学位及以上","18-35周岁","初中及以上物理教师资格、普通话二级乙等及以上","是","试讲","宁明县教育局人事股0771-8632311"]
[{"$f":"SUBTOTAL(3,$I$3:I38)*1","v":36},"宁明县教育局",2024109,"宁明县第二实验学校（初中部）","初中地理教师","聘用教师控制数","在宁明县教育系统服务3年",1,"地理科学,地理学,地理教育,地理学教育,地理信息科学,地理信息技术,自然地理与资源环境,人文地理与城乡规划,环境科学及其他与地理相关的专业","大学本科及以上","学士学位及以上","18-35周岁","初中及以上地理教师资格、普通话二级乙等及以上","是","试讲","宁明县教育局人事股0771-8632311"]
[{"$f":"SUBTOTAL(3,$I$3:I39)*1","v":37},"宁明县教育局",2024119,"宁明县寨安中学","初中历史教师","聘用教师控制数","在宁明县教育系统服务3年",1,"历史学,历史教育,历史地理学,世界历史,世界史,政史教育,综合文科教育 ,史学理论及史学史，考古学及博物馆学，历史文献学，专门史，中国古代史，中国近现代史，文化人类学及其他与历史相关的专业","大学本科及以上","无要求","18-35周岁","初中及以上历史教师资格、普通话二级乙等及以上","是","试讲","宁明县教育局人事股0771-8632311"]
[{"$f":"SUBTOTAL(3,$I$3:I40)*1","v":38},"宁明县教育局",2024120,"宁明县寨安中学","初中生物教师","聘用教师控制数","在宁明县教育系统服务3年",1,"生物科学，生物技术，生物信息学，生物信息技术，生物科学与生物技术，生物化学与分子生物学，植物生物技术，动物生物技术，生物资源科学，生物安全，生物工程,生化技术,生物教育  ，生理学，水生生物学，微生物学，神经生物学，遗传学，发育生物学，细胞生物学，生物化学与分子生物学，生物物理学，生态学","大学本科及以上","无要求","18-35周岁","初中及以上生物教师资格、普通话二级乙等及以上","是","试讲","宁明县教育局人事股0771-8632311"]
[{"$f":"SUBTOTAL(3,$I$3:I41)*1","v":39},"宁明县教育局",2024121,"宁明县寨安中学","初中心理教师","聘用教师控制数","在宁明县教育系统服务3年",1,"心理学，应用心理学，临床心理学，医学心理学，社会心理学，心理咨询,教育学及其他与心理相关的专业","大学本科及以上","无要求","18-35周岁","初中及以上心理教师资格、普通话二级乙等及以上","是","试讲","宁明县教育局人事股0771-8632311"]
[{"$f":"SUBTOTAL(3,$I$3:I42)*1","v":40},"宁明县教育局",2024123,"宁明县寨安中学","初中数学教师","聘用教师控制数","在宁明县教育系统服务3年",2,"数学与应用数学，数理基础科学，应用数学，计算数学及其应用软件，数学，基础数学，计算数学，概率论与数理统计,统计学，应用统计学及其他与数学相关的专业","大学本科及以上","无要求","18-35周岁","初中及以上数学教师资格、普通话二级乙等及以上","是","试讲","宁明县教育局人事股0771-8632311"]
[{"$f":"SUBTOTAL(3,$I$3:I43)*1","v":41},"宁明县教育局",2024124,"宁明县寨安中学","初中英语教师","聘用教师控制数","在宁明县教育系统服务3年",2,"英语,应用英语,实用英语,英语教育,商务英语,外贸英语,旅游英语及其他与英语相关的专业","大学本科及以上","无要求","18-35周岁","初中及以上英语教师资格、普通话二级乙等及以上","是","试讲","宁明县教育局人事股0771-8632311"]
[{"$f":"SUBTOTAL(3,$I$3:I44)*1","v":42},"宁明县教育局",2024134,"宁明县城中镇中心小学","小学语文教师","聘用教师控制数","在宁明县教育系统服务3年",1,"汉语言文学，秘书学，汉语言，对外汉语，语言学，中国语言文化，应用语言学，中国语言文学，中文应用，古典文献学，文学，中国文学，汉语言文学与文化传播，秘书，文秘，文秘学，现代秘书，汉语国际教育，现代文秘，文秘与办公自动化，文秘教育，中文教育，秘书教育，汉语言文学教育，小学教育","大学本科及以上","无要求","18-35周岁","小学及以上语文教师资格、普通话二级甲等及以上","是","试讲","宁明县教育局人事股0771-8632311"]
[{"$f":"SUBTOTAL(3,$I$3:I45)*1","v":43},"宁明县教育局",2024141,"宁明县城中镇中心小学","小学信息技术教师","聘用教师控制数","在宁明县教育系统服务3年",1,"计算机科学,计算机技术,计算机科学技术,计算机网络技术,计算机网络工程,计算机网络技术工程,计算机控制,计算机通讯,计算机系统维护,计算机硬件,计算机器件,计算机设备,计算机硬件器件,计算机硬件设备,电器与电脑,计算机应用与保护,计算机网络,电子与计算机工程,计算机应用与维护,计算机教育，电子信息工程，通信工程，电气信息工程，电力工程与管理，微电子制造工程，信息物理工程，电信工程及管理，信息与通信工程","大学本科及以上","无要求","18-35周岁","小学及以上信息技术教师资格、普通话二级乙等及以上","是","试讲","宁明县教育局人事股0771-8632311"]
[{"$f":"SUBTOTAL(3,$I$3:I46)*1","v":44},"宁明县教育局",2024146,"宁明县城中镇第二小学","小学语文教师","聘用教师控制数","在宁明县教育系统服务3年",2,"汉语言文学，秘书学，汉语言，对外汉语，语言学，中国语言文化，应用语言学，中国语言文学，中文应用，古典文献学，文学，中国文学，汉语言文学与文化传播，秘书，文秘，文秘学，现代秘书，汉语国际教育，现代文秘，文秘与办公自动化，文秘教育，中文教育，秘书教育，汉语言文学教育，小学教育","大学本科及以上","无要求","18-35周岁","小学及以上语文教师资格、普通话二级甲等及以上","是","试讲","宁明县教育局人事股0771-8632311"]
[{"$f":"SUBTOTAL(3,$I$3:I47)*1","v":45},"宁明县教育局",2024165,"宁明县城中镇第五小学","小学数学教师","聘用教师控制数","在宁明县教育系统服务3年",1,"数学与应用数学，数理基础科学，应用数学，计算数学及其应用软件，数学，基础数学，计算数学，概率论与数理统计,统计学，小学教育、应用统计学及其他与数学相关的专业","大学本科及以上","无要求","18-35周岁","小学及以上数学教师资格、普通话二级乙等及以上","是","试讲","宁明县教育局人事股0771-8632311"]
[{"$f":"SUBTOTAL(3,$I$3:I47)*1","v":45},"宁明县教育局",2024166,"宁明县城中镇第五小学","小学英语教师","聘用教师控制数","在宁明县教育系统服务3年",1,"英语,应用英语,实用英语,英语教育,商务英语,外贸英语,旅游英语及其他与英语相关的专业","大学本科及以上","无要求","18-35周岁","小学及以上英语教师资格、普通话二级乙等及以上","是","试讲","宁明县教育局人事股0771-8632311"]
[{"$f":"SUBTOTAL(3,$I$3:I49)*1","v":47},"宁明县教育局",2024171,"宁明县城中镇第五小学","小学心理教师","聘用教师控制数","在宁明县教育系统服务3年",1,"心理学，应用心理学，临床心理学，医学心理学，社会心理学，心理咨询,教育学及其他与心理相关的专业","大学本科及以上","无要求","18-35周岁","小学及以上心理教师资格、普通话二级乙等及以上","是","试讲","宁明县教育局人事股0771-8632311"]
[{"$f":"SUBTOTAL(3,$I$3:I50)*1","v":48},"宁明县教育局",2024173,"宁明县实验学校（小学部）","小学英语教师","聘用教师控制数","在宁明县教育系统服务3年",1,"英语,应用英语,实用英语,英语教育,商务英语,外贸英语,旅游英语及其他与英语相关的专业","大学本科及以上","无要求","18-35周岁","小学及以上英语教师资格、普通话二级乙等及以上","是","试讲","宁明县教育局人事股0771-8632311"]
[{"$f":"SUBTOTAL(3,$I$3:I51)*1","v":49},"宁明县教育局",2024193,"宁明县峙浪乡中心小学","小学音乐教师","聘用教师控制数","在宁明县教育系统服务3年",1,"音乐学,音乐教育,音乐表演,艺术教育,表演,舞蹈教育,舞蹈表演及其他与音乐相关的专业","大学本科及以上","无要求","18-35周岁","小学及以上音乐教师资格、普通话二级乙等及以上","是","试讲","宁明县教育局人事股0771-8632311"]
[{"$f":"SUBTOTAL(3,$I$3:I52)*1","v":50},"宁明县教育局",2024196,"宁明县峙浪乡中心小学","小学美术教师","聘用教师控制数","在宁明县教育系统服务3年",1,"美术教育,美术,美术学,绘画,中国画,油画,电脑美术设计,工艺美术及其他与美术相关的专业","大学本科及以上","无要求","18-35周岁","小学及以上美术教师资格、普通话二级乙等及以上","是","试讲","宁明县教育局人事股0771-8632311"]
[{"$f":"SUBTOTAL(3,$I$3:I53)*1","v":51},"宁明县教育局",2024197,"宁明县峙浪乡中心小学","小学心理教师","聘用教师控制数","在宁明县教育系统服务3年",1,"心理学，应用心理学，临床心理学，医学心理学，社会心理学，心理咨询,教育学及其他与心理相关的专业","大学本科及以上","无要求","18-35周岁","小学及以上心理教师资格、普通话二级乙等及以上","是","试讲","宁明县教育局人事股0771-8632311"]
[{"$f":"SUBTOTAL(3,$I$3:I54)*1","v":52},"宁明县教育局",2024202,"宁明县桐棉镇中心小学","小学美术教师","聘用教师控制数","在宁明县教育系统服务3年",1,"美术教育,美术,美术学,绘画,中国画,油画,电脑美术设计,工艺美术及其他与美术相关的专业","大学本科及以上","无要求","18-35周岁","小学及以上美术教师资格、普通话二级乙等及以上","是","试讲","宁明县教育局人事股0771-8632311"]
[{"$f":"SUBTOTAL(3,$I$3:I55)*1","v":53},"宁明县教育局",2024204,"宁明县爱店镇中心幼儿园","幼儿园教师","聘用教师控制数","在宁明县教育系统服务3年",2,"学前教育,幼儿教育","大专学历及以上","无要求","18-35周岁","幼儿教师资格、普通话二级乙等及以上","是","试讲","宁明县教育局人事股0771-8632311"]
[{"$f":"SUBTOTAL(3,$I$3:I56)*1","v":54},"宁明县教育局",2024205,"宁明县那堪镇中心幼儿园","幼儿园教师","聘用教师控制数","在宁明县教育系统服务3年",2,"学前教育,幼儿教育","大专学历及以上","无要求","18-35周岁","幼儿教师资格、普通话二级乙等及以上","是","试讲","宁明县教育局人事股0771-8632311"]
[{"$f":"SUBTOTAL(3,$I$3:I57)*1","v":55},"宁明县教育局",2024206,"宁明县桐棉中心幼儿园","幼儿园教师","聘用教师控制数","在宁明县教育系统服务3年",1,"学前教育,幼儿教育","大专学历及以上","无要求","18-35周岁","幼儿教师资格、普通话二级乙等及以上","是","试讲","宁明县教育局人事股0771-8632311"]
[{"$f":"SUBTOTAL(3,$I$3:I58)*1","v":56},"宁明县教育局",2024207,"宁明县海渊镇中心幼儿园","幼儿园教师","聘用教师控制数","在宁明县教育系统服务3年",1,"学前教育,幼儿教育","大专学历及以上","无要求","18-35周岁","幼儿教师资格、普通话二级乙等及以上","是","试讲","宁明县教育局人事股0771-8632311"]
[{"$f":"SUBTOTAL(3,$I$3:I59)*1","v":57},"宁明县教育局",2024208,"宁明县职业技术学校","新能源汽车维修教师","非实名编制","在宁明县教育系统服务3年",2,"汽车工程教育、汽车电子技术与检测诊断、汽车服务工程、车辆工程、交通运输、汽车制造与试验工程（新能源汽车类） ","大学本科及以上","学士学位及以上","18-35周岁","高中或中职相应教师资格（可缓两年考取）","是","试讲","宁明县教育局人事股0771-8632311"]
[{"$f":"SUBTOTAL(3,$I$3:I60)*1","v":58},"宁明县教育局",2024209,"宁明县职业技术学校","美容与形象设计教师","非实名编制","在宁明县教育系统服务3年",1,"美容与形象设计、美容美发","大学本科及以上","学士学位及以上","18-35周岁","高中或中职相应教师资格（可缓两年考取）","是","试讲","宁明县教育局人事股0771-8632311"]
[{"$f":"SUBTOTAL(3,$I$3:I61)*1","v":59},"宁明县教育局",2024212,"宁明县职业技术学校","工业机器人应用教师","非实名编制","在宁明县教育系统服务3年",1,"机械设计制造及其自动化、机械工程及自动化、电气工程及其自动化、电子信息化","大学本科及以上","学士学位及以上","18-35周岁","高中或中职相应教师资格（可缓两年考取）","是","试讲","宁明县教育局人事股0771-8632311"]
[{"$f":"SUBTOTAL(3,$I$3:I62)*1","v":60},"宁明县教育局",2024213,"宁明县职业技术学校","烹饪教师","非实名编制","在宁明县教育系统服务3年",1,"烹饪与营养教育、中式烹饪","大学本科及以上","学士学位及以上","18-35周岁","高中或中职相应教师资格（可缓两年考取）","是","试讲","宁明县教育局人事股0771-8632311"]
[{"$f":"SUBTOTAL(3,$I$3:I63)*1","v":61},"宁明县教育局",2024214,"宁明县职业技术学校","幼保教师","非实名编制","在宁明县教育系统服务3年",2,"学前教育","大学本科及以上","学士学位及以上","18-35周岁","高中或中职相应教师资格（可缓两年考取）","是","试讲","宁明县教育局人事股0771-8632311"]
[{"$nulls":7},{"$f":"SUM(H4:H64)","v":108}]